Cogmind - Beta 10 X2 *** ADVENTURER MODE // 2020.07.18 @ 22:44:04 // Experiment/BattleRoyale Player: Minty Result: Destroyed by Siegeplate-16 with Enhanced Force Lance Performance ------------- Evolutions (0) 0 Regions Visited (0) 0 Robots Destroyed (1) 5 Value Destroyed (500) 500 Prototype IDs (1) 20 Alien Tech Used (0) 0 Bonus (0) 0 TOTAL SCORE: 525 Bonus ------- None Cogmind --------- Core Integrity 0/250 Matter 239/300 Energy 302/310 System Corruption 0% Temperature Cool (91) Movement Core (800) Ox15 Location -5/Wartown Parts ------- > --- POWER (3) -------- Fission Core > --- PROPULSION (4) --- (None) > --- UTILITY (6) ------ Advanced Coolant Injector Advanced Sensor Array Melee Analysis Suite Weapon Cycler Advanced Weapon Cycler Medium Reactive Plating > --- WEAPON (3) ------- Hypervelocity Gauss Cannon Power Sword > --- INVENTORY (4) ---- (None) Peak State ------------ > --- POWER ------------ Light Deuterium Engine Fission Core > --- PROPULSION ------- Wheel Improved Cesium-ion Thruster Makeshift Flight Unit Nuclear Pulse Thruster > --- UTILITY ---------- Advanced Coolant Injector Advanced Sensor Array Melee Analysis Suite Weapon Cycler Advanced Weapon Cycler Medium Reactive Plating > --- WEAPON ----------- Hypervelocity Railgun Hypervelocity Gauss Cannon Heavy Mace > --- INVENTORY -------- (None) [Rating: 69] Favorites ----------- Power Fission Core Engine Light Deuterium Engine Power Core Fission Core Propulsion Improved Treads Treads Improved Treads Wheel Wheel Flight Unit Nuclear Pulse Thruster Utility Advanced Coolant Injector Device Advanced Coolant Injector Processor Melee Analysis Suite Protection Medium Reactive Plating Weapon Hypervelocity Gauss Cannon Ballistic Gun Hypervelocity Railgun Ballistic Cannon Hypervelocity Gauss Cannon Impact Weapon Heavy Mace Slashing Weapon Power Sword Build | -5 ------- Run | Tow Slots Evolved . | . Power . | . Propulsion . | . Utility . | . Weapon . | . Parts Attached 2 | 2 Power . | . Engine . | . Core . | . Reactor . | . Propulsion 1 | 1 Treads 1 | 1 Leg . | . Wheel . | . Hover . | . Flight . | . Utility . | . Device . | . Storage . | . Processor . | . Hackware . | . Protection . | . Artifact . | . Weapon 1 | 1 Energy Gun . | . Energy Cannon . | . Ballistic Gun . | . Ballistic Cannon . | . Launcher . | . Special Weapon . | . Impact Weapon . | . Slashing Weapon 1 | 1 Piercing Weapon . | . Special Melee Weapon . | . Unidentified Prototypes . | . Parts Lost 3 | 3 Power 1 | 1 Propulsion 1 | 1 Utility . | . Weapon 1 | 1 Highest Loss Streak 3 | 3 Average Slot Usage (%) 79 | 79 Engine 6 | 6 Core 6 | 6 Treads 5 | 5 Device 26 | 26 Processor 6 | 6 Protection 6 | 6 Ballistic Gun 5 | 5 Ballistic Cannon 6 | 6 Impact Weapon 2 | 2 Slashing Weapon 3 | 3 Naked Turns . | . Heaviest Build 59 | 59 Greatest Support 23 | 23 Greatest Overweight (x) 5 | 5 Average Overweight (x) 2 | 2 Largest Inventory Capacity 4 | 4 Average Capacity 4 | 4 Most Carried . | . Average Carried . | . Final Capacity 4 | 4 Final Carried . | . Class Distribution -------------------- 100% | Mutant Dominant Class ---------------- Mutant | -5/Wartown Resources | -5 ----------- Run | Tow Matter Collected . | . Remotely . | . Salvage Created 100 | 100 Parts 15 | 15 Haulers Intercepted . | . Recyclers Shooed . | . Parts Field Recycled . | . Retrieved Matter . | . Parts Self-Destructed . | . Prevented . | . Kills | -5 ------- Run | Tow Combat Hostiles Destroyed 1 | 1 Cannons 1 | 1 Classes Destroyed 1 | 1 Player 1 | 1 Best Kill Streak 1 | 1 Combat Bots Only 1 | 1 Max Kills in Single Turn 1 | 1 Gunslinging . | . Exploded . | . Melee . | . Uniques/NPCs Destroyed . | . Combat | -5 -------- Run | Tow Damage Taken 650 | 650 Core 258 | 258 Absorbed by Shields . | . Redirected to Core 4264 | 4264 Core Remaining (%) . | . Volleys Fired 8 | 8 Largest 2 | 2 Hottest 101 | 101 Shots Fired 10 | 10 Gun 2 | 2 Cannon 8 | 8 Launcher . | . Special . | . Kinetic 10 | 10 Thermal . | . Explosive . | . Electromagnetic . | . Robot Hit Streak 4 | 4 Robot Miss Streak 2 | 2 Penetration Max . | . Secondary Targets . | . Shots Hit Robots 11 | 11 Core Hits 5 | 5 Critical Hits 2 | 2 Critical Kills . | . Critical Parts Destroyed 2 | 2 Melee Attacks 6 | 6 Impact . | . Slashing 6 | 6 Piercing . | . Sneak Attacks . | . Combat Hostiles . | . Follow-up Attacks . | . Damage Inflicted 262 | 262 Guns 7 | 7 Cannons 102 | 102 Explosions . | . Melee 153 | 153 Ramming . | . Kinetic 109 | 109 Thermal . | . Explosive . | . Electromagnetic . | . Impact . | . Slashing 153 | 153 Piercing . | . Highest Corruption . | . Average Corruption . | . Corruption Purged . | . Overload Shots . | . Overflow Damage . | . Projectiles . | . Explosions . | . Melee . | . Knockbacks . | . Impact . | . Kinetic . | . Secondary . | . Self-Inflicted Damage . | . Shots . | . Rammed . | . Targets Rammed . | . Kicked . | . Crushed . | . Highest Temperature 187 | 187 Average Temperature 103 | 103 Received Heat Transfer . | . Siege Activations . | . Robots Corrupted . | . Combat Hostiles . | . Parts Fried . | . Impact Corruptions . | . Robots Melted . | . Combat Hostiles . | . Parts Melted . | . Heat Transferred . | . Parts Sabotaged . | . Parts Stolen . | . Parts Stripped . | . Power Chain Reactions . | . Missiles Intercepted . | . Alert | -5 ------- Run | Tow Peak Influence . | . Average Influence . | . Maximum Alert Level . | . Low Security (%) . | . Level 1 . | . Level 2 . | . Level 3 . | . Level 4 . | . Level 5 . | . High Security . | . Max Security . | . Squads Dispatched . | . Investigation . | . Extermination . | . Reinforcement . | . Assault . | . Garrison . | . Intercept . | . Construction Impeded . | . Haulers Reinforced . | . Stealth | -5 --------- Run | Tow Distress Signals . | . Communications Jammed . | . Distress Signals . | . Times Spotted 2 | 2 Peak Tracking Total 2 | 2 Tactical Retreats . | . Traps | -5 ------- Run | Tow Traps Triggered . | . Indirectly . | . Trap Hack Attempts . | . Triggered . | . Disarmed . | . Reprogrammed . | . Reused . | . Traps Extracted . | . Installed . | . Triggered . | . Machines | -5 ---------- Run | Tow Machines Disabled . | . Max in Single Turn . | . Machines Sabotaged . | . Garrisons Compromised . | . Overloaded Fab Kills . | . Fab Network Shutdowns . | . Hacking | -5 --------- Run | Tow Machines Accessed . | . Terminals . | . Fabricators . | . Repair Stations . | . Recycling Units . | . Scanalyzers . | . Garrison Access . | . Total Hacks . | . Successful . | . Failed . | . Catastrophic . | . Database Lockouts . | . Manual . | . Terminals . | . Fabricators . | . Repair Stations . | . Recycling Units . | . Scanalyzers . | . Garrison Access . | . Terminal Hacks . | . Fabricator Hacks . | . Repair Station Hacks . | . Recycling Unit Hacks . | . Scanalyzer . | . Garrison Access Hacks . | . Unauthorized Hacks . | . Terminals . | . Fabricators . | . Repair Stations . | . Recycling Units . | . Scanalyzers . | . Garrison Access . | . Data Cores Recovered . | . Used . | . Hacking Detections . | . Full Trace Events . | . Feedback Events . | . Feedback Blocked . | . Robot Schematics Acquired . | . Robots Built . | . Matter . | . Time . | . Total Robot Build Rating . | . Part Schematics Acquired . | . Parts Built . | . Matter . | . Time . | . Total Part Build Rating . | . Parts Repaired . | . Time . | . Parts Recycled . | . Recycled Matter . | . Retrieved Matter . | . Retrieved Components . | . Parts Scanalyzed . | . Part Schematics Acquired . | . Parts Damaged . | . Bothacking | -5 ------------ Run | Tow Used RIF Installer . | . Robots Hacked . | . Non-combat . | . Combat . | . Robot Hacks Applied . | . Relay Couplers Released . | . Robots Rewired . | . Allies Hacked . | . Hacks Repelled . | . Allies | -5 -------- Run | Tow Total Allies . | . Largest Group . | . Highest-Rated Group . | . Highest-Rated Ally . | . Total Orders . | . Ally Attacks . | . Total Damage . | . Kills . | . Allies Corrupted . | . Allies Melted . | . Intel | -5 ------- Run | Tow Robot Analysis Total . | . Derelict Logs Recovered . | . Drone Launches . | . Drone Recoveries . | . Exploration | -5 ------------- Run | Tow Turns Passed 178 | 178 Spaces Moved 79 | 79 Core . | . Treads 63 | 63 Legs . | . Wheels 16 | 16 Hover . | . Flight . | . Fastest Speed 130 | 130 Average Speed 185 | 185 Slowest Speed 200 | 200 Overloaded Moves . | . Propulsion Burnouts . | . Robots Hopped . | . Cave-ins Triggered . | . Exploration Rate (%) 3 | 3 Regions Visited 1 Branch Regions 1 Pre-discovered Areas . | . Known Exits Taken . | . Unknown Exits Taken . | . Scrap Searched . | . Spaces Dug . | . Terrain Destroyed . | . Melee . | . Projectile . | . AOE . | . Actions | -5 --------- Run | Tow Total 100 | 100 Wait . | . Move 79 | 79 Hop . | . Pick Up . | . Fast Attach 2 | 2 Attach . | . Detach . | . Swap . | . Drop 5 | 5 Fire 8 | 8 Melee 6 | 6 Ram . | . Kick . | . Crush . | . Escape Stasis . | . Rewire . | . Trap . | . Miscellaneous . | . Route ------- -5/Wartown History --------- Turn | Location | Event 171 | -5/Wartown | Core integrity fell below 50% 174 | -5/Wartown | Core integrity fell below 20% 179 | -5/Wartown | Destroyed by Siegeplate-16 with Enhanced Force Lance Last Messages --------------- 00162_ Hyp. Railgun destroyed. 00162_ Siegeplate-16 follow-up attacks with Mak. Spear. 00164_ Siegeplate-16 follow-up attacks with Mak. Sword. 00165_ Fiercetime-21 suffers critical hit. 00165_ Destroyed Prototype Reactor. 00166_ Siegeplate-16 follow-up attacks with Mak. Spear. 00166_ HV Slug penetrates Wall. 00168_ Fiercetime-21 attaches Cmb. Antigrav System. 00168_ HV Slug penetrates Fiercetime-21. 00169_ Fiercetime-21 attaches Mak. Power Source. 00170_ Slug penetrates Siegeplate-16. 00170_ Siegeplate-16 follow-up attacks with Mak. Sword. 00170_ Fiercetime-21 destroyed. 00173_ Critical hit. 00173_ Imp. Treads destroyed. 00173_ Siegeplate-16 follow-up attacks with Mak. Spear. 00173_ Siegeplate-16 follow-up attacks with Mak. Sword. 00177_ Critical hit. 00177_ Lgt. Deuterium Engine destroyed. 00177_ Siegeplate-16 follow-up attacks with Mak. Sword. Map ----- +----------------------------------------------------+ | ?????????????????????????????????????????????????? | | ?????????????????????????????????????????????????? | | ?????????????????????????????????????????????????? | | ?????????????????????????????????????????????????? | | ?????????????????????????????????????????????????? | | ?????????????????????????????????????????????????? | | ?????????????????????????????????????????????????? | | ??????????????????????## ??????????????????????? | | ???????????????????? ????????????????????? | | ????????????????? ?????????????????? | | ??????????????? ???????????????? | | ????????????? ????????????????? | | ????????????? [ = ?????????????????? | | ???????????? ?????????????????? | | ???????????? ??????????????????? | | ??????????? ! ???????????????????? | | ???????????? #????????????????? | | ?????????????? #????????????? | | ???????????????? = #????????????# | | ??????????????????! #????????????# | | ???????????????????? #????????????# | | ?????????????????????? #????????????# | | ???????????????????????# #????????????+ | | ???????????????????????# #????????????# | | ???????????????????????# @ #????????????# | | ???????????????????????# @ #????????????# | | ???????????????????????# #????????????# | | ???????????????????????# #????????????# | | ???????????????????????# #????????????# | | ???????????????????????# #######+###### | | ???????????????????????# | | ???????????????????????# | | ???????????????????????# | | ???????????????????????# ! | | ???????????????????????# | | ????????????????????####!! | | ??????????????? !%]= # | | ????????????????## =%![ ! # | | ?????????????????# =*!! # | | ?????????????????# ##########+######+# # | | ?????????????????# ??????????????????# # | | ?????????????????# ??????????????????# # | | ?????????????????# ??????????????????# # | | ?????????????????# ???????????????????# # | | ?????????????????# ???????????????????# # | | ?????????????????# ???????????????????# # | | ?????????????????#???????????????????????# # | | ?????????????????????????????????????????? ? | | ?????????????????????????????????????????? ???? | | ?????????????????????????????????????????????????? | +----------------------------------------------------+ Best States ------------- Heat Dissipation 25 Coolant Potential 100 Energy Generation 27 Energy Capacity 350 Matter Stores 300 Matter Capacity 300 Sight Range 16 Robot Scan Range 16 Terrain Scan Density 10 Armor Coverage 225 Resistance: KI 50 Resistance: TH 20 Resistance: EX 20 Resistance: EM 20 Resistance: I 20 Resistance: S 20 Resistance: P 20 Weapon Cycling 30 Evasion (%) 40 Melee Accuracy 5 Recoil Reduction 1 Offensive Hacking 10 Item Schematics ----------------- None Robot Schematics ------------------ None Fabricated ------------ Nothing Alien Tech Used ----------------- None Achievements -------------- None Challenges ------------ None Game ------ Seed TargetTerrabombSword Manual? 0 Play Time 00:02:27 Cumulative 212.0 hours Start 2020.07.18 @ 22:42:47 End 2020.07.18 @ 22:44:04 Sessions 1 Manual Loads 0 Difficulty Adventurer Special Mode Experiment/BattleRoyale Game No. 137 Rogue 0 Adventurer 46 Explorer 91 Win Type - Total 6 Types 5/0/1/0/0/0/0 Lore% 53 Gallery% 79 Achievement% 58 Wizard Run 0 Options --------- ASCII 0 Keyboard 0 Movement Mouse Keybinds 0 Fullscreen 1 Font 18/TerminusBold Map View 76x50 Tactical HUD 1 Map Filters NONE Filters SATURATION(100) Steam 1 RUN: b1245808-4d52-47f3-b221-b16db7ab6a43